[Event "Titled Tuesday Blitz March 08 Late 2022"]
[White "Tristan, Leonardo"]
[Black "Praggnanandhaa R"]
[WhiteFideId "113816"]
[BlackFideId "25059530"]
[WhiteElo "2404"]
[BlackElo "2599"]
[Result "0-1"]
[Round "04"]
[TimeControl "180+1"]
[Date "2022.03.08"]
[WhiteClock "0:00:59"]
[BlackClock "0:01:33"]

1. e4 {[%clk 0:03:00]}  Nc6 {[%clk 0:02:57]} 2. Nf3 {[%clk 0:02:59]}  d6 {[%clk 0:02:54]} 3. d4 {[%clk 0:02:57]}  Nf6 {[%clk 0:02:51]} 4. Nc3 {[%clk 0:02:57]}  g6 {[%clk 0:02:50]} 5. Be2 {[%clk 0:02:54]}  Bg7 {[%clk 0:02:50]} 6. O-O {[%clk 0:02:55]}  O-O {[%clk 0:02:50]} 7. h3 {[%clk 0:02:55]}  e5 {[%clk 0:02:49]} 8. dxe5 {[%clk 0:02:53]}  Nxe5 {[%clk 0:02:49]} 9. Nxe5 {[%clk 0:02:51]}  dxe5 {[%clk 0:02:50]} 10. Be3 {[%clk 0:02:50]}  Qe7 {[%clk 0:02:47]} 11. Bc4 {[%clk 0:02:34]}  c6 {[%clk 0:02:45]} 12. a4 {[%clk 0:02:34]}  Qb4 {[%clk 0:02:35]} 13. Qd3 {[%clk 0:02:15]}  Bd7 {[%clk 0:02:28]} 14. a5 {[%clk 0:02:06]}  Rfd8 {[%clk 0:02:26]} 15. Ra4 {[%clk 0:02:03]}  Qe7 {[%clk 0:02:17]} 16. Qe2 {[%clk 0:02:04]}  Nh5 {[%clk 0:02:10]} 17. b4 {[%clk 0:01:54]}  Nf4 {[%clk 0:02:04]} 18. Qf3 {[%clk 0:01:54]}  Ne6 {[%clk 0:02:04]} 19. Ne2 {[%clk 0:01:51]}  c5 {[%clk 0:01:57]} 20. b5 {[%clk 0:01:51]}  a6 {[%clk 0:01:57]} 21. Rb1 {[%clk 0:01:48]}  axb5 {[%clk 0:01:44]} 22. Bxb5 {[%clk 0:01:48]}  Bxb5 {[%clk 0:01:45]} 23. Rxb5 {[%clk 0:01:48]}  Qd7 {[%clk 0:01:46]} 24. Nc3 {[%clk 0:01:37]}  Nd4 {[%clk 0:01:45]} 25. Bxd4 {[%clk 0:01:22]}  exd4 {[%clk 0:01:44]} 26. e5 {[%clk 0:01:14]}  dxc3 {[%clk 0:01:40]} 27. Rxb7 {[%clk 0:01:14]}  Qd1+ {[%clk 0:01:40]} 28. Qxd1 {[%clk 0:01:13]}  Rxd1+ {[%clk 0:01:41]} 29. Kh2 {[%clk 0:01:14]}  Bxe5+ {[%clk 0:01:42]} 30. f4 {[%clk 0:01:14]}  Bd6 {[%clk 0:01:37]} 31. a6 {[%clk 0:01:13]}  Rd4 {[%clk 0:01:37]} 32. Rxd4 {[%clk 0:01:04]}  cxd4 {[%clk 0:01:36]} 33. a7 {[%clk 0:01:05]}  d3 {[%clk 0:01:34]} 34. Rb6 {[%clk 0:00:59]}  dxc2 {[%clk 0:01:33]} 35. Rxd6 {[%clk 0:00:59]}  c1=Q {[%clk 0:01:33]} 0-1


[Site "https://www.chess.com"]

[Event "Titled Tuesday Blitz March 08 Late 2022"]
[White "Vargas Pereda, Jesus Manue"]
[Black "Chernomordik, Pavel"]
[WhiteFideId "5115710"]
[BlackFideId "2804530"]
[WhiteElo "1780"]
[BlackElo "2249"]
[Result "0-1"]
[Round "04"]
[TimeControl "180+1"]
[Date "2022.03.09"]
[WhiteClock "0:00:09"]
[BlackClock "0:00:48"]

1. d4 {[%clk 0:03:00]}  g6 {[%clk 0:03:00]} 2. e4 {[%clk 0:02:58]}  Bg7 {[%clk 0:03:01]} 3. Be3 {[%clk 0:02:58]}  d6 {[%clk 0:03:00]} 4. Nc3 {[%clk 0:02:58]}  a6 {[%clk 0:03:00]} 5. Qd2 {[%clk 0:02:58]}  b5 {[%clk 0:02:59]} 6. Nf3 {[%clk 0:02:42]}  Bb7 {[%clk 0:02:58]} 7. d5 {[%clk 0:02:38]}  Nf6 {[%clk 0:02:51]} 8. Bd3 {[%clk 0:02:37]}  c6 {[%clk 0:02:44]} 9. dxc6 {[%clk 0:02:28]}  Nxc6 {[%clk 0:02:43]} 10. O-O {[%clk 0:02:24]}  O-O {[%clk 0:02:40]} 11. Bh6 {[%clk 0:02:23]}  Rc8 {[%clk 0:02:36]} 12. Rfe1 {[%clk 0:02:21]}  e5 {[%clk 0:02:30]} 13. Rad1 {[%clk 0:02:17]}  Qb6 {[%clk 0:02:26]} 14. Be3 {[%clk 0:02:16]}  Qc7 {[%clk 0:02:25]} 15. Bf1 {[%clk 0:02:05]}  Rfd8 {[%clk 0:02:23]} 16. Bg5 {[%clk 0:01:50]}  Ne7 {[%clk 0:02:23]} 17. Bh6 {[%clk 0:01:31]}  b4 {[%clk 0:02:17]} 18. Nd5 {[%clk 0:01:30]}  Nfxd5 {[%clk 0:02:02]} 19. exd5 {[%clk 0:01:28]}  Bxd5 {[%clk 0:01:56]} 20. Bxg7 {[%clk 0:01:26]}  Kxg7 {[%clk 0:01:56]} 21. Bxa6 {[%clk 0:01:15]}  Ra8 {[%clk 0:01:55]} 22. Bf1 {[%clk 0:01:05]}  Bxf3 {[%clk 0:01:52]} 23. gxf3 {[%clk 0:01:05]}  Nf5 {[%clk 0:01:51]} 24. Re4 {[%clk 0:00:50]}  Rxa2 {[%clk 0:01:45]} 25. Rxb4 {[%clk 0:00:48]}  Nd4 {[%clk 0:01:38]} 26. Rxd4 {[%clk 0:00:26]}  exd4 {[%clk 0:01:38]} 27. Qxd4+ {[%clk 0:00:27]}  Kg8 {[%clk 0:01:38]} 28. Bc4 {[%clk 0:00:24]}  Ra5 {[%clk 0:01:35]} 29. Bb3 {[%clk 0:00:22]}  Rf5 {[%clk 0:01:28]} 30. c3 {[%clk 0:00:20]}  Rxf3 {[%clk 0:01:23]} 31. Re1 {[%clk 0:00:19]}  Rf5 {[%clk 0:01:17]} 32. Qh4 {[%clk 0:00:16]}  Qc5 {[%clk 0:01:07]} 33. Qxd8+ {[%clk 0:00:13]}  Kg7 {[%clk 0:01:05]} 34. Qh4 {[%clk 0:00:13]}  Qb6 {[%clk 0:01:04]} 35. Bd1 {[%clk 0:00:11]}  Qxb2 {[%clk 0:01:02]} 36. Bf3 {[%clk 0:00:10]}  Rxf3 {[%clk 0:00:59]} 37. Qd4+ {[%clk 0:00:10]}  Rf6 {[%clk 0:00:54]} 38. Re3 {[%clk 0:00:09]}  Qb1+ {[%clk 0:00:53]} 39. Kg2 {[%clk 0:00:10]}  Qf5 {[%clk 0:00:53]} 40. Rf3 {[%clk 0:00:10]}  Qxf3+ {[%clk 0:00:53]} 41. Kg1 {[%clk 0:00:09]}  g5 {[%clk 0:00:50]} 42. h4 {[%clk 0:00:09]}  gxh4 {[%clk 0:00:49]} 43. Qxh4 {[%clk 0:00:09]}  Rg6+ {[%clk 0:00:49]} 44. Kf1 {[%clk 0:00:09]}  Qd1# {[%clk 0:00:48]} 0-1


[Site "https://www.chess.com"]

[Event "Titled Tuesday Blitz March 08 Late 2022"]
[White "Vifleemskaia, Svetlana"]
[Black "Urbina Perez, Juan Antonio"]
[WhiteFideId "4129490"]
[BlackFideId "2217368"]
[WhiteElo "2327"]
[BlackElo "2506"]
[Result "1/2-1/2"]
[Round "04"]
[TimeControl "180+1"]
[Date "2022.03.09"]
[WhiteClock "0:00:04"]
[BlackClock "0:00:16"]

1. d4 {[%clk 0:03:00]}  e6 {[%clk 0:02:58]} 2. c4 {[%clk 0:03:00]}  Nf6 {[%clk 0:02:58]} 3. Nc3 {[%clk 0:03:01]}  Bb4 {[%clk 0:02:58]} 4. e3 {[%clk 0:03:00]}  O-O {[%clk 0:02:57]} 5. Ne2 {[%clk 0:03:00]}  b6 {[%clk 0:02:58]} 6. a3 {[%clk 0:03:00]}  Be7 {[%clk 0:02:55]} 7. d5 {[%clk 0:03:00]}  Bb7 {[%clk 0:02:55]} 8. e4 {[%clk 0:03:00]}  e5 {[%clk 0:02:53]} 9. g3 {[%clk 0:02:58]}  a5 {[%clk 0:02:53]} 10. Bg2 {[%clk 0:02:58]}  Re8 {[%clk 0:02:51]} 11. O-O {[%clk 0:02:57]}  d6 {[%clk 0:02:50]} 12. h3 {[%clk 0:02:47]}  Nbd7 {[%clk 0:02:50]} 13. Be3 {[%clk 0:02:46]}  Nc5 {[%clk 0:02:50]} 14. b4 {[%clk 0:02:44]}  Ncd7 {[%clk 0:02:31]} 15. Qb3 {[%clk 0:02:38]}  Bf8 {[%clk 0:02:29]} 16. Rfb1 {[%clk 0:02:13]}  Ba6 {[%clk 0:01:58]} 17. Nc1 {[%clk 0:02:06]}  Qe7 {[%clk 0:01:53]} 18. Nd3 {[%clk 0:02:05]}  g6 {[%clk 0:01:46]} 19. Nb5 {[%clk 0:02:00]}  Rec8 {[%clk 0:01:40]} 20. Rc1 {[%clk 0:01:49]}  Nh5 {[%clk 0:01:35]} 21. Bf3 {[%clk 0:01:41]}  Ng7 {[%clk 0:01:34]} 22. Bg4 {[%clk 0:01:36]}  f5 {[%clk 0:01:33]} 23. Bf3 {[%clk 0:01:33]}  fxe4 {[%clk 0:01:30]} 24. Bxe4 {[%clk 0:01:32]}  Nf5 {[%clk 0:01:30]} 25. Bxf5 {[%clk 0:01:15]}  gxf5 {[%clk 0:01:31]} 26. f4 {[%clk 0:01:00]}  Bg7 {[%clk 0:01:21]} 27. Rab1 {[%clk 0:00:57]}  Nf6 {[%clk 0:01:11]} 28. fxe5 {[%clk 0:00:52]}  dxe5 {[%clk 0:01:10]} 29. Rf1 {[%clk 0:00:47]}  Ne4 {[%clk 0:00:55]} 30. Rxf5 {[%clk 0:00:41]}  Nxg3 {[%clk 0:00:55]} 31. Rf3 {[%clk 0:00:19]}  Ne2+ {[%clk 0:00:48]} 32. Kf2 {[%clk 0:00:18]}  Bxb5 {[%clk 0:00:47]} 33. cxb5 {[%clk 0:00:12]}  Qh4+ {[%clk 0:00:35]} 34. Kxe2 {[%clk 0:00:12]}  e4 {[%clk 0:00:35]} 35. Rf4 {[%clk 0:00:10]}  exd3+ {[%clk 0:00:34]} 36. Qxd3 {[%clk 0:00:10]}  Qh5+ {[%clk 0:00:34]} 37. Kf2 {[%clk 0:00:07]}  Rf8 {[%clk 0:00:33]} 38. Rg1 {[%clk 0:00:05]}  Rxf4+ {[%clk 0:00:30]} 39. Bxf4 {[%clk 0:00:06]}  Rf8 {[%clk 0:00:29]} 40. Rg4 {[%clk 0:00:06]}  Kh8 {[%clk 0:00:26]} 41. Kg3 {[%clk 0:00:06]}  axb4 {[%clk 0:00:20]} 42. axb4 {[%clk 0:00:05]}  Be5 {[%clk 0:00:18]} 43. Qe4 {[%clk 0:00:04]}  Bxf4+ {[%clk 0:00:17]} 44. Rxf4 {[%clk 0:00:05]}  Rxf4 {[%clk 0:00:15]} 45. Qxf4 {[%clk 0:00:04]}  Qxd5 {[%clk 0:00:14]} 46. Qf8+ {[%clk 0:00:03]}  Qg8+ {[%clk 0:00:15]} 47. Qxg8+ {[%clk 0:00:03]}  Kxg8 {[%clk 0:00:16]} 48. Kf4 {[%clk 0:00:03]}  Kf8 {[%clk 0:00:15]} 49. Kf5 {[%clk 0:00:02]}  Kf7 {[%clk 0:00:16]} 50. Ke5 {[%clk 0:00:03]}  Ke7 {[%clk 0:00:15]} 51. Kd5 {[%clk 0:00:03]}  Kd7 {[%clk 0:00:15]} 52. Ke5 {[%clk 0:00:04]}  Ke7 {[%clk 0:00:16]} 53. Kd5 {[%clk 0:00:04]}  Kd7 {[%clk 0:00:16]} 54. Ke5 {[%clk 0:00:04]}  Ke7 {[%clk 0:00:16]} 1/2-1/2


[Site "https://www.chess.com"]

[Event "Titled Tuesday Blitz March 08 Late 2022"]
[White "Wagner, Dennis"]
[Black "Ronka, Erik"]
[WhiteFideId "24650684"]
[BlackFideId "505080"]
[WhiteElo "2355"]
[BlackElo "2264"]
[Result "1/2-1/2"]
[Round "04"]
[TimeControl "180+1"]
[Date "2022.03.08"]
[WhiteClock "0:00:12"]
[BlackClock "0:00:24"]

1. d4 {[%clk 0:03:00]}  d5 {[%clk 0:02:59]} 2. c4 {[%clk 0:03:00]}  dxc4 {[%clk 0:03:00]} 3. Nf3 {[%clk 0:03:00]}  c6 {[%clk 0:02:59]} 4. e3 {[%clk 0:02:58]}  Be6 {[%clk 0:02:59]} 5. Nc3 {[%clk 0:02:58]}  Nf6 {[%clk 0:02:58]} 6. Be2 {[%clk 0:02:57]}  g6 {[%clk 0:02:36]} 7. O-O {[%clk 0:02:57]}  Bg7 {[%clk 0:02:36]} 8. a4 {[%clk 0:02:47]}  O-O {[%clk 0:02:36]} 9. Ne5 {[%clk 0:02:46]}  c5 {[%clk 0:02:33]} 10. dxc5 {[%clk 0:02:43]}  Qc7 {[%clk 0:02:33]} 11. Nxc4 {[%clk 0:02:40]}  Qxc5 {[%clk 0:02:32]} 12. b3 {[%clk 0:02:28]}  Nd5 {[%clk 0:02:24]} 13. Ba3 {[%clk 0:02:28]}  Nxc3 {[%clk 0:02:22]} 14. Bxc5 {[%clk 0:02:28]}  Nxd1 {[%clk 0:02:22]} 15. Raxd1 {[%clk 0:02:29]}  Nc6 {[%clk 0:02:20]} 16. Bf3 {[%clk 0:02:01]}  Rac8 {[%clk 0:02:19]} 17. Bxc6 {[%clk 0:01:18]}  Rxc6 {[%clk 0:02:20]} 18. Bxa7 {[%clk 0:01:16]}  Bxc4 {[%clk 0:02:14]} 19. bxc4 {[%clk 0:01:17]}  Ra6 {[%clk 0:01:51]} 20. Bd4 {[%clk 0:01:15]}  Rxa4 {[%clk 0:01:51]} 21. c5 {[%clk 0:01:13]}  Bxd4 {[%clk 0:01:47]} 22. Rxd4 {[%clk 0:01:08]}  Rxd4 {[%clk 0:01:43]} 23. exd4 {[%clk 0:01:09]}  Rd8 {[%clk 0:01:44]} 24. Rd1 {[%clk 0:01:08]}  Rd5 {[%clk 0:01:44]} 25. f4 {[%clk 0:01:07]}  f6 {[%clk 0:01:44]} 26. Kf2 {[%clk 0:01:02]}  e5 {[%clk 0:01:42]} 27. fxe5 {[%clk 0:01:01]}  fxe5 {[%clk 0:01:42]} 28. Ke2 {[%clk 0:00:38]}  exd4 {[%clk 0:01:42]} 29. Rc1 {[%clk 0:00:38]}  Kf7 {[%clk 0:01:35]} 30. Kd3 {[%clk 0:00:37]}  Ke6 {[%clk 0:01:30]} 31. Re1+ {[%clk 0:00:35]}  Re5 {[%clk 0:01:25]} 32. Rb1 {[%clk 0:00:27]}  Rxc5 {[%clk 0:01:02]} 33. Rxb7 {[%clk 0:00:23]}  h5 {[%clk 0:00:53]} 34. Rb6+ {[%clk 0:00:14]}  Kf5 {[%clk 0:00:50]} 35. Kxd4 {[%clk 0:00:14]}  Rc2 {[%clk 0:00:50]} 36. g3 {[%clk 0:00:05]}  Rxh2 {[%clk 0:00:50]} 37. Ke3 {[%clk 0:00:06]}  Ra2 {[%clk 0:00:30]} 38. Kf3 {[%clk 0:00:06]}  Ra3+ {[%clk 0:00:25]} 39. Kg2 {[%clk 0:00:06]}  Ra4 {[%clk 0:00:26]} 40. Rc6 {[%clk 0:00:05]}  Kg4 {[%clk 0:00:26]} 41. Rxg6+ {[%clk 0:00:05]}  Kf5 {[%clk 0:00:25]} 42. Rg8 {[%clk 0:00:05]}  Rg4 {[%clk 0:00:24]} 43. Rf8+ {[%clk 0:00:04]}  Kg5 {[%clk 0:00:23]} 44. Kh3 {[%clk 0:00:05]}  Rc4 {[%clk 0:00:21]} 45. Ra8 {[%clk 0:00:05]}  Rc3 {[%clk 0:00:21]} 46. Ra5+ {[%clk 0:00:06]}  Kg6 {[%clk 0:00:21]} 47. Kh4 {[%clk 0:00:06]}  Rc4+ {[%clk 0:00:21]} 48. Kh3 {[%clk 0:00:07]}  Rc3 {[%clk 0:00:22]} 49. Rb5 {[%clk 0:00:07]}  Rc4 {[%clk 0:00:22]} 50. Ra5 {[%clk 0:00:07]}  Rd4 {[%clk 0:00:22]} 51. Rc5 {[%clk 0:00:08]}  Re4 {[%clk 0:00:22]} 52. Rb5 {[%clk 0:00:08]}  Rc4 {[%clk 0:00:22]} 53. Kg2 {[%clk 0:00:08]}  Rd4 {[%clk 0:00:22]} 54. Kf3 {[%clk 0:00:08]}  Rc4 {[%clk 0:00:22]} 55. Ke3 {[%clk 0:00:08]}  Rc3+ {[%clk 0:00:23]} 56. Kf4 {[%clk 0:00:08]}  Rc4+ {[%clk 0:00:23]} 57. Kf3 {[%clk 0:00:09]}  Rc3+ {[%clk 0:00:23]} 58. Kg2 {[%clk 0:00:09]}  Rc4 {[%clk 0:00:23]} 59. Kh3 {[%clk 0:00:10]}  Rd4 {[%clk 0:00:24]} 60. Rc5 {[%clk 0:00:10]}  Re4 {[%clk 0:00:24]} 61. Rd5 {[%clk 0:00:11]}  Rc4 {[%clk 0:00:24]} 62. Rd8 {[%clk 0:00:10]}  Rb4 {[%clk 0:00:24]} 63. Rg8+ {[%clk 0:00:11]}  Kh7 {[%clk 0:00:24]} 64. Rg5 {[%clk 0:00:11]}  Kh6 {[%clk 0:00:24]} 65. Rd5 {[%clk 0:00:12]}  Kg6 {[%clk 0:00:24]} 66. Rc5 {[%clk 0:00:12]}  Rd4 {[%clk 0:00:24]} 67. Rb5 {[%clk 0:00:12]}  Rc4 {[%clk 0:00:24]} 1/2-1/2


[Site "https://www.chess.com"]

[Event "Titled Tuesday Blitz March 08 Late 2022"]
[White "Winkels, Marcel"]
[Black "Sanchez, Robert"]
[WhiteFideId "1003887"]
[BlackFideId "2034360"]
[WhiteElo "1900"]
[BlackElo "2277"]
[Result "0-1"]
[Round "04"]
[TimeControl "180+1"]
[Date "2022.03.09"]
[WhiteClock "0:00:07"]
[BlackClock "0:00:47"]

1. b3 {[%clk 0:02:56]}  d6 {[%clk 0:02:59]} 2. Bb2 {[%clk 0:02:56]}  Nc6 {[%clk 0:02:59]} 3. e3 {[%clk 0:02:56]}  e5 {[%clk 0:03:00]} 4. d4 {[%clk 0:02:54]}  e4 {[%clk 0:02:59]} 5. Bb5 {[%clk 0:02:50]}  d5 {[%clk 0:02:59]} 6. Ne2 {[%clk 0:02:48]}  Nf6 {[%clk 0:03:00]} 7. c4 {[%clk 0:02:46]}  a6 {[%clk 0:02:58]} 8. cxd5 {[%clk 0:02:39]}  Qxd5 {[%clk 0:02:55]} 9. Bc4 {[%clk 0:02:38]}  Qg5 {[%clk 0:02:54]} 10. Ng3 {[%clk 0:02:30]}  h5 {[%clk 0:02:53]} 11. h4 {[%clk 0:02:27]}  Qg6 {[%clk 0:02:53]} 12. Nc3 {[%clk 0:02:22]}  Bd6 {[%clk 0:02:42]} 13. Nge2 {[%clk 0:01:51]}  Qxg2 {[%clk 0:02:26]} 14. Rg1 {[%clk 0:01:51]}  Qh2 {[%clk 0:02:26]} 15. Rxg7 {[%clk 0:01:49]}  Rf8 {[%clk 0:02:15]} 16. a4 {[%clk 0:01:34]}  Bf5 {[%clk 0:02:01]} 17. Qc2 {[%clk 0:01:05]}  Nb4 {[%clk 0:01:58]} 18. Qd2 {[%clk 0:01:02]}  Ng4 {[%clk 0:01:54]} 19. O-O-O {[%clk 0:00:54]}  Qxf2 {[%clk 0:01:50]} 20. Nf4 {[%clk 0:00:42]}  Qxe3 {[%clk 0:01:45]} 21. Nfd5 {[%clk 0:00:34]}  Nxd5 {[%clk 0:01:36]} 22. Nxd5 {[%clk 0:00:30]}  Qxd2+ {[%clk 0:01:35]} 23. Kxd2 {[%clk 0:00:26]}  O-O-O {[%clk 0:01:27]} 24. Ne3 {[%clk 0:00:25]}  Bf4 {[%clk 0:01:23]} 25. Re1 {[%clk 0:00:23]}  Nxe3 {[%clk 0:01:22]} 26. Rxe3 {[%clk 0:00:23]}  Bg6 {[%clk 0:01:20]} 27. Ke2 {[%clk 0:00:19]}  Bxe3 {[%clk 0:01:20]} 28. Kxe3 {[%clk 0:00:19]}  Rg8 {[%clk 0:01:17]} 29. d5 {[%clk 0:00:17]}  Rxg7 {[%clk 0:01:16]} 30. Bxg7 {[%clk 0:00:17]}  Rg8 {[%clk 0:01:08]} 31. Bf6 {[%clk 0:00:16]}  Bf5 {[%clk 0:01:07]} 32. Bg5 {[%clk 0:00:15]}  Bd7 {[%clk 0:01:02]} 33. d6 {[%clk 0:00:14]}  Be6 {[%clk 0:01:01]} 34. dxc7 {[%clk 0:00:13]}  Bxc4 {[%clk 0:00:58]} 35. bxc4 {[%clk 0:00:13]}  Kxc7 {[%clk 0:00:59]} 36. Kxe4 {[%clk 0:00:13]}  Rg6 {[%clk 0:00:53]} 37. Kf5 {[%clk 0:00:12]}  Kc6 {[%clk 0:00:53]} 38. Be3 {[%clk 0:00:11]}  Rg4 {[%clk 0:00:51]} 39. c5 {[%clk 0:00:09]}  Rxa4 {[%clk 0:00:49]} 40. Bg5 {[%clk 0:00:08]}  Kxc5 {[%clk 0:00:46]} 41. Kf6 {[%clk 0:00:09]}  Kd5 {[%clk 0:00:45]} 42. Kxf7 {[%clk 0:00:09]}  b5 {[%clk 0:00:45]} 43. Kg6 {[%clk 0:00:09]}  b4 {[%clk 0:00:45]} 44. Kxh5 {[%clk 0:00:10]}  b3 {[%clk 0:00:45]} 45. Bf6 {[%clk 0:00:08]}  Rd4 {[%clk 0:00:44]} 46. Kg5 {[%clk 0:00:08]}  b2 {[%clk 0:00:44]} 47. Bxd4 {[%clk 0:00:07]}  Kxd4 {[%clk 0:00:45]} 48. h5 {[%clk 0:00:08]}  b1=Q {[%clk 0:00:45]} 49. h6 {[%clk 0:00:09]}  Qh7 {[%clk 0:00:45]} 50. Kh5 {[%clk 0:00:08]}  a5 {[%clk 0:00:46]} 51. Kg5 {[%clk 0:00:07]}  a4 {[%clk 0:00:47]} 52. Kh5 {[%clk 0:00:07]}  a3 {[%clk 0:00:48]} 53. Kg5 {[%clk 0:00:08]}  a2 {[%clk 0:00:48]} 54. Kh5 {[%clk 0:00:08]}  a1=Q {[%clk 0:00:48]} 55. Kg5 {[%clk 0:00:09]}  Qg1+ {[%clk 0:00:48]} 56. Kf6 {[%clk 0:00:08]}  Qf2+ {[%clk 0:00:47]} 57. Ke6 {[%clk 0:00:08]}  Qg6+ {[%clk 0:00:46]} 58. Kd7 {[%clk 0:00:07]}  Qff7+ {[%clk 0:00:47]} 0-1


[Site "https://www.chess.com"]

[Event "Titled Tuesday Blitz March 08 Late 2022"]
[White "Yuan, Qingyu"]
[Black "Kushko, Dmitriy"]
[WhiteFideId "8609772"]
[BlackFideId "14162261"]
[WhiteElo "2765"]
[BlackElo "2535"]
[Result "1-0"]
[Round "04"]
[TimeControl "180+1"]
[Date "2022.03.09"]
[WhiteClock "0:00:07"]
[BlackClock "0:00:09"]

1. e4 {[%clk 0:03:00]}  d6 {[%clk 0:02:59]} 2. d4 {[%clk 0:03:00]}  Nf6 {[%clk 0:03:00]} 3. Nc3 {[%clk 0:03:01]}  g6 {[%clk 0:03:00]} 4. Be3 {[%clk 0:02:58]}  c6 {[%clk 0:03:00]} 5. a4 {[%clk 0:02:56]}  Bg7 {[%clk 0:02:58]} 6. Nf3 {[%clk 0:02:56]}  O-O {[%clk 0:02:58]} 7. Qd2 {[%clk 0:02:56]}  Qc7 {[%clk 0:02:57]} 8. Be2 {[%clk 0:02:45]}  Nbd7 {[%clk 0:02:50]} 9. O-O {[%clk 0:02:45]}  b6 {[%clk 0:02:50]} 10. Bh6 {[%clk 0:02:40]}  Bb7 {[%clk 0:02:49]} 11. Rfe1 {[%clk 0:02:37]}  Rfd8 {[%clk 0:02:47]} 12. Bxg7 {[%clk 0:02:36]}  Kxg7 {[%clk 0:02:47]} 13. Bd3 {[%clk 0:02:31]}  e5 {[%clk 0:02:47]} 14. Ne2 {[%clk 0:02:29]}  c5 {[%clk 0:02:41]} 15. dxc5 {[%clk 0:02:07]}  Nxc5 {[%clk 0:01:28]} 16. Ng3 {[%clk 0:02:06]}  Ne6 {[%clk 0:00:34]} 17. Ra3 {[%clk 0:01:57]}  Nf4 {[%clk 0:00:32]} 18. Rc3 {[%clk 0:01:53]}  Qe7 {[%clk 0:00:32]} 19. Bc4 {[%clk 0:01:48]}  Rac8 {[%clk 0:00:29]} 20. Bb3 {[%clk 0:01:31]}  Rxc3 {[%clk 0:00:29]} 21. Qxc3 {[%clk 0:01:31]}  Rc8 {[%clk 0:00:28]} 22. Qd2 {[%clk 0:01:30]}  h6 {[%clk 0:00:20]} 23. Nd4 {[%clk 0:01:23]}  Kf8 {[%clk 0:00:16]} 24. Nb5 {[%clk 0:01:16]}  a6 {[%clk 0:00:09]} 25. Nc3 {[%clk 0:01:13]}  Rd8 {[%clk 0:00:08]} 26. Nf1 {[%clk 0:01:10]}  Kg7 {[%clk 0:00:08]} 27. Qe3 {[%clk 0:01:07]}  Qc7 {[%clk 0:00:08]} 28. Nd2 {[%clk 0:01:02]}  Qc5 {[%clk 0:00:07]} 29. Nc4 {[%clk 0:00:58]}  Qxe3 {[%clk 0:00:04]} 30. Rxe3 {[%clk 0:00:57]}  d5 {[%clk 0:00:04]} 31. exd5 {[%clk 0:00:48]}  N6xd5 {[%clk 0:00:04]} 32. Nxd5 {[%clk 0:00:44]}  Bxd5 {[%clk 0:00:05]} 33. Rxe5 {[%clk 0:00:19]}  Bxg2 {[%clk 0:00:03]} 34. Ne3 {[%clk 0:00:17]}  Bc6 {[%clk 0:00:01]} 35. Re7 {[%clk 0:00:18]}  Nh3+ {[%clk 0:00:01]} 36. Kf1 {[%clk 0:00:18]}  Rd7 {[%clk 0:00:02]} 37. Rxd7 {[%clk 0:00:16]}  Bxd7 {[%clk 0:00:03]} 38. Nd5 {[%clk 0:00:13]}  b5 {[%clk 0:00:03]} 39. a5 {[%clk 0:00:14]}  Ng5 {[%clk 0:00:03]} 40. Nb4 {[%clk 0:00:12]}  Bc8 {[%clk 0:00:03]} 41. Bd5 {[%clk 0:00:12]}  Nh3 {[%clk 0:00:03]} 42. b3 {[%clk 0:00:11]}  Nf4 {[%clk 0:00:04]} 43. c4 {[%clk 0:00:11]}  bxc4 {[%clk 0:00:03]} 44. Bxc4 {[%clk 0:00:11]}  Kf6 {[%clk 0:00:04]} 45. Nxa6 {[%clk 0:00:09]}  Ke5 {[%clk 0:00:03]} 46. Nb4 {[%clk 0:00:09]}  f5 {[%clk 0:00:03]} 47. a6 {[%clk 0:00:08]}  Kd6 {[%clk 0:00:04]} 48. a7 {[%clk 0:00:07]}  Bb7 {[%clk 0:00:04]} 49. Bb5 {[%clk 0:00:08]}  Kc7 {[%clk 0:00:04]} 50. Bc6 {[%clk 0:00:08]}  Bxc6 {[%clk 0:00:04]} 51. Nxc6 {[%clk 0:00:08]}  Kb7 {[%clk 0:00:05]} 52. b4 {[%clk 0:00:08]}  Nd5 {[%clk 0:00:05]} 53. b5 {[%clk 0:00:08]}  Nc7 {[%clk 0:00:06]} 54. Ne7 {[%clk 0:00:08]}  Nxb5 {[%clk 0:00:05]} 55. Nxg6 {[%clk 0:00:08]}  Nd6 {[%clk 0:00:05]} 56. Kg2 {[%clk 0:00:08]}  Kxa7 {[%clk 0:00:05]} 57. Kf3 {[%clk 0:00:08]}  Kb7 {[%clk 0:00:06]} 58. Kf4 {[%clk 0:00:09]}  Kc6 {[%clk 0:00:07]} 59. Ne7+ {[%clk 0:00:09]}  Kd7 {[%clk 0:00:07]} 60. Nxf5 {[%clk 0:00:10]}  Nf7 {[%clk 0:00:07]} 61. Nd4 {[%clk 0:00:07]}  Ke7 {[%clk 0:00:06]} 62. Kf5 {[%clk 0:00:07]}  h5 {[%clk 0:00:04]} 63. f4 {[%clk 0:00:07]}  Nd6+ {[%clk 0:00:02]} 64. Kg5 {[%clk 0:00:08]}  h4 {[%clk 0:00:01]} 65. Kxh4 {[%clk 0:00:07]}  Kf6 {[%clk 0:00:02]} 66. Kg4 {[%clk 0:00:08]}  Ne4 {[%clk 0:00:03]} 67. Nf3 {[%clk 0:00:06]}  Nf2+ {[%clk 0:00:03]} 68. Kg3 {[%clk 0:00:07]}  Ne4+ {[%clk 0:00:04]} 69. Kg4 {[%clk 0:00:06]}  Nf2+ {[%clk 0:00:04]} 70. Kh4 {[%clk 0:00:04]}  Ne4 {[%clk 0:00:05]} 71. Nd4 {[%clk 0:00:04]}  Nf2 {[%clk 0:00:04]} 72. Kg3 {[%clk 0:00:04]}  Ne4+ {[%clk 0:00:04]} 73. Kf3 {[%clk 0:00:05]}  Nd2+ {[%clk 0:00:05]} 74. Kg4 {[%clk 0:00:05]}  Nf1 {[%clk 0:00:04]} 75. h4 {[%clk 0:00:05]}  Ne3+ {[%clk 0:00:05]} 76. Kf3 {[%clk 0:00:05]}  Nd5 {[%clk 0:00:04]} 77. Ne2 {[%clk 0:00:04]}  Kg6 {[%clk 0:00:03]} 78. Ng3 {[%clk 0:00:04]}  Nf6 {[%clk 0:00:03]} 79. f5+ {[%clk 0:00:03]}  Kh6 {[%clk 0:00:03]} 80. Kf4 {[%clk 0:00:04]}  Nd5+ {[%clk 0:00:03]} 81. Ke5 {[%clk 0:00:04]}  Ne3 {[%clk 0:00:04]} 82. f6 {[%clk 0:00:04]}  Kg6 {[%clk 0:00:04]} 83. Ke6 {[%clk 0:00:04]}  Ng2 {[%clk 0:00:04]} 84. f7 {[%clk 0:00:03]}  Nf4+ {[%clk 0:00:04]} 85. Ke7 {[%clk 0:00:04]}  Nd5+ {[%clk 0:00:05]} 86. Ke8 {[%clk 0:00:04]}  Nc7+ {[%clk 0:00:04]} 87. Kd7 {[%clk 0:00:04]}  Kxf7 {[%clk 0:00:04]} 88. Kxc7 {[%clk 0:00:05]}  Kf6 {[%clk 0:00:05]} 89. h5 {[%clk 0:00:05]}  Ke5 {[%clk 0:00:06]} 90. Kd7 {[%clk 0:00:05]}  Kf6 {[%clk 0:00:07]} 91. Ke8 {[%clk 0:00:06]}  Kg5 {[%clk 0:00:08]} 92. Kf7 {[%clk 0:00:06]}  Kh6 {[%clk 0:00:09]} 93. Kg8 {[%clk 0:00:06]}  Kg5 {[%clk 0:00:09]} 94. Kg7 {[%clk 0:00:07]} 1-0


[Site "https://www.chess.com"]

[Event "Titled Tuesday Blitz March 08 Late 2022"]
[White "Zivkovic, Nemanja"]
[Black "Jakubowska, Anna"]
[WhiteFideId "942154"]
[BlackFideId "1121952"]
[WhiteElo "2587"]
[BlackElo "2359"]
[Result "0-1"]
[Round "04"]
[TimeControl "180+1"]
[Date "2022.03.09"]
[WhiteClock "0:02:09"]
[BlackClock "0:02:21"]

1. e4 {[%clk 0:03:00]}  c6 {[%clk 0:02:55]} 2. d4 {[%clk 0:03:00]}  d5 {[%clk 0:02:55]} 3. e5 {[%clk 0:03:00]}  Bf5 {[%clk 0:02:55]} 4. Nf3 {[%clk 0:03:00]}  e6 {[%clk 0:02:55]} 5. Be2 {[%clk 0:03:01]}  Ne7 {[%clk 0:02:55]} 6. Nbd2 {[%clk 0:02:59]}  Nd7 {[%clk 0:02:55]} 7. Nb3 {[%clk 0:02:59]}  h6 {[%clk 0:02:55]} 8. O-O {[%clk 0:02:59]}  Qc7 {[%clk 0:02:56]} 9. Be3 {[%clk 0:02:57]}  g5 {[%clk 0:02:53]} 10. Ne1 {[%clk 0:02:54]}  c5 {[%clk 0:02:50]} 11. c3 {[%clk 0:02:53]}  c4 {[%clk 0:02:46]} 12. Nd2 {[%clk 0:02:49]}  Bg7 {[%clk 0:02:43]} 13. f4 {[%clk 0:02:47]}  O-O-O {[%clk 0:02:41]} 14. fxg5 {[%clk 0:02:42]}  hxg5 {[%clk 0:02:41]} 15. Bxg5 {[%clk 0:02:43]}  f6 {[%clk 0:02:41]} 16. Bf4 {[%clk 0:02:26]}  fxe5 {[%clk 0:02:39]} 17. Bg3 {[%clk 0:02:23]}  Qb6 {[%clk 0:02:31]} 18. Ndf3 {[%clk 0:02:14]}  exd4 {[%clk 0:02:28]} 19. Nxd4 {[%clk 0:02:09]}  e5 {[%clk 0:02:21]} 0-1


[Site "https://www.chess.com"]